bitfinex-derivatives/quotes_BNBF0:USTF0_20250630
["timestamp","ask_amount","ask_price","bid_price","bid_amount"]
[1751319199139,2.26745088,658.97,658.52,1.03552271]
[1751319199344,2.26745088,658.97,658.53,1.03552271]
[1751319199540,2.26745088,658.97,658.54,1.03552271]
[1751319199738,2.26745088,658.97,658.55,1.03552271]
[1751319199947,2.26745088,658.97,658.56,1.03552271]
[1751319200147,2.26745088,658.97,658.57,1.03552271]
[1751319200347,2.26745088,658.97,658.58,1.03552271]
[1751319200549,2.26745088,658.97,658.59,1.03552271]
[1751319200748,2.26745088,658.97,658.6,1.03552271]
[1751319200951,2.26745088,658.97,658.61,1.03552271]
[1751319201152,2.26745088,658.97,658.62,1.03552271]
[1751319201445,2.26745088,658.97,658.48,1.803]
[1751319201652,2.26745088,658.97,658.49,1.03552286]
[1751319201851,2.26745088,658.97,658.5,1.03552286]
[1751319202052,2.26745088,658.97,658.51,1.03552286]
[1751319202350,2.26745088,658.97,658.52,1.03552286]
[1751319202551,2.26745088,658.97,658.53,1.03552286]
[1751319202751,2.26745088,658.97,658.54,1.03552286]
[1751319202951,0.26416369,659.21,658.55,1.03552286]
[1751319202952,2.26745088,659.0,658.55,1.03552286]
[1751319203148,2.26745088,659.0,658.56,1.03552286]
[1751319203447,2.26745088,659.0,658.57,1.03552286]
[1751319203651,2.26745088,659.0,658.48,1.803]
[1751319203652,2.26745088,659.0,658.58,1.03552286]
[1751319203848,2.26745088,659.0,658.59,1.03552286]
[1751319204047,2.26745088,659.0,658.6,1.03552286]
[1751319204252,2.26745088,659.0,658.61,1.03552286]
[1751319204448,2.26745088,659.02,658.62,1.03552286]
[1751319204753,2.26745088,659.02,658.63,1.03552286]
[1751319204953,2.26745088,659.02,658.64,1.03552286]
[1751319205149,2.26745088,659.02,658.65,1.03552286]
[1751319205348,2.26745088,659.02,658.48,1.803]
[1751319205552,2.26745088,659.02,658.49,1.03665299]
[1751319205751,2.26745088,659.02,658.5,1.03665299]
[1751319205949,2.26745088,659.02,658.51,1.03665299]
[1751319206149,2.26745088,659.02,658.52,1.03665299]
[1751319206348,2.26745088,659.02,658.53,1.03665299]
[1751319206552,2.26745088,659.02,658.54,1.03665299]
[1751319206750,2.26745088,659.02,658.55,1.03665299]
[1751319206955,2.26745088,659.02,658.56,1.03665299]
[1751319207154,2.26745088,659.02,658.57,1.03665299]
[1751319207348,2.26745088,659.02,658.58,1.03665299]
[1751319207548,2.26745088,659.02,658.59,1.03665299]
[1751319207750,2.26745088,659.02,658.6,1.03665299]
[1751319208053,2.26745088,659.02,658.61,1.03665299]
[1751319208349,2.26745088,659.02,658.62,1.03665299]
[1751319208553,2.26745088,659.02,658.63,1.03665299]
[1751319208851,2.26745088,659.02,658.64,1.03665299]
[1751319209051,2.26745088,659.02,658.65,1.03665299]
[1751319209250,2.26745088,659.02,658.48,1.803]
[1751319209451,2.26745088,659.02,658.49,1.03665387]
[1751319209752,2.26745088,659.02,658.5,1.03665387]
[1751319210050,2.26745088,659.02,658.51,1.03665387]
[1751319210351,2.26745088,659.02,658.52,1.03665387]
[1751319210654,2.26745088,659.02,658.53,1.03665387]
[1751319210955,2.26745088,659.02,658.54,1.03665387]
[1751319211154,2.26745088,659.02,658.55,1.03665387]
[1751319211453,2.26745088,659.02,658.56,1.03665387]
[1751319211653,2.26745088,659.02,658.57,1.03665387]
[1751319211852,2.26745088,659.02,658.58,1.03665387]
[1751319212157,2.26745088,659.07,658.59,1.03665387]
[1751319212356,2.26745088,659.07,658.6,1.03665387]
[1751319212556,2.26745088,659.06,658.61,1.03665387]
[1751319212853,2.26745088,659.05,658.62,1.03665387]
[1751319213056,2.26745088,659.05,658.63,1.03665387]
[1751319213257,2.26745088,659.05,658.64,1.03665387]
[1751319213557,2.26745088,659.05,658.65,1.03665387]
[1751319213758,2.26745088,659.05,658.46,0.26405545]
[1751319213958,2.26745088,659.05,658.47,1.03665526]
[1751319214251,2.26745088,659.05,658.48,1.03665526]
[1751319214554,0.26416369,659.21,658.46,0.26405545]
[1751319214555,2.26745088,659.04,658.49,1.03665526]
[1751319214752,2.26745088,659.04,658.5,1.03665526]
[1751319214957,2.26745088,659.04,658.51,1.03665526]
[1751319215253,2.26745088,659.04,658.52,1.03665526]
[1751319215456,2.26745088,659.04,658.53,1.03665526]
[1751319215656,2.26745088,659.04,658.54,1.03665526]
[1751319215853,2.26745088,659.04,658.55,1.03665526]
[1751319216054,2.26745088,659.04,658.56,1.03665526]
[1751319216252,2.26745088,659.04,658.57,1.03665526]
[1751319216454,2.26745088,659.04,658.58,1.03665526]
[1751319216754,2.26745088,659.04,658.59,1.03665526]
[1751319216956,2.26745088,659.04,658.6,1.03665526]
[1751319217257,2.26745088,659.04,658.61,1.03665526]
[1751319217555,2.26745088,659.04,658.62,1.03665526]
[1751319217759,2.26745088,659.04,658.63,1.03665526]
[1751319217961,2.26745088,659.04,658.64,1.03665526]
[1751319218260,2.26745088,659.04,658.65,1.03665526]
[1751319218457,2.26745088,659.04,658.52,1.869]
[1751319218661,2.26745088,659.04,658.53,1.03665778]
[1751319218855,2.26745088,659.04,658.54,1.03665778]
[1751319219060,2.26745088,659.04,658.55,1.03665778]
[1751319219260,2.26745088,659.04,658.56,1.03665778]
[1751319219457,2.26745088,659.04,658.57,1.03665778]
[1751319219660,2.26745088,659.04,658.58,1.03665778]
[1751319219859,2.26745088,659.04,658.59,1.03665778]
[1751319220058,2.26745088,659.04,658.6,1.03665778]
[1751319220256,2.26745088,659.04,658.61,1.03665778]
[1751319220463,2.26745088,659.04,658.62,1.03665778]
[1751319220663,2.26745088,659.04,658.63,1.03665778]
[1751319220864,2.26745088,659.04,658.64,1.03665778]
[1751319221064,2.26745088,659.04,658.52,1.869]
[1751319221264,2.26745088,659.04,658.53,1.03665453]
[1751319221465,2.26745088,659.04,658.54,1.03665453]
[1751319221665,2.26745088,659.04,658.55,1.03665453]
[1751319221866,2.26745088,658.99,658.56,1.03665453]
[1751319222066,2.26745088,658.99,658.57,1.03665453]
[1751319222261,2.26745088,658.99,658.58,1.03665453]
[1751319222462,2.26745088,658.99,658.59,1.03665453]
[1751319222666,2.26745088,658.99,658.6,1.03665453]
[1751319222865,2.26745088,658.99,658.61,1.03665453]
[1751319223064,2.26745088,658.99,658.62,1.03665453]
[1751319223268,2.26745088,658.99,658.63,1.03665453]
[1751319223465,2.26745088,658.99,658.64,1.03665453]
[1751319223665,2.26745088,658.99,658.52,1.869]
[1751319223865,2.26745088,658.99,658.53,1.0366459]
[1751319224165,2.26745088,658.99,658.54,1.0366459]
[1751319224368,2.26745088,658.99,658.55,1.0366459]
[1751319224564,2.26745088,658.99,658.56,1.0366459]
[1751319224866,2.26745088,658.99,658.57,1.0366459]
[1751319225166,2.26745088,658.99,658.58,1.0366459]
[1751319225366,2.26745088,658.99,658.59,1.0366459]
[1751319225565,2.26745088,658.99,658.6,1.0366459]
[1751319225866,2.26745088,658.99,658.61,1.0366459]
[1751319226066,2.26745088,658.99,658.62,1.0366459]
[1751319226266,2.26745088,658.99,658.63,1.0366459]
[1751319226470,2.26745088,659.01,658.64,1.0366459]
[1751319226668,2.26745088,659.01,658.52,1.869]
[1751319226868,2.26745088,659.01,658.53,1.03664015]
[1751319227069,2.26745088,659.01,658.54,1.03664015]
[1751319227267,2.26745088,659.01,658.55,1.03664015]
[1751319227466,2.26745088,659.01,658.56,1.03664015]
[1751319227667,2.26745088,659.01,658.57,1.03664015]
[1751319227971,2.26745088,659.01,658.58,1.03664015]
[1751319228170,2.26745088,659.01,658.59,1.03664015]
[1751319228371,2.26745088,659.01,658.6,1.03664015]
[1751319228570,2.26745088,659.01,658.61,1.03664015]
[1751319228868,2.26745088,659.01,658.62,1.03664015]
[1751319229172,2.26745088,659.01,658.63,1.03664015]
[1751319229372,2.26745088,659.01,658.64,1.03664015]
[1751319229570,2.26745088,659.01,658.52,1.869]
[1751319229770,2.26745088,659.01,658.53,1.03664333]
[1751319229972,2.26745088,659.12,658.54,1.03664333]
[1751319230168,2.26745088,659.12,658.52,1.869]
[1751319230169,2.26745088,659.12,658.55,1.03664333]
[1751319230370,2.26745088,659.12,658.56,1.03664333]
[1751319230570,2.26745088,659.12,658.57,1.03664333]
[1751319230875,2.26745088,659.12,658.58,1.03664333]
[1751319231071,2.26745088,659.12,658.52,1.869]
[1751319231072,2.26745088,659.12,658.59,1.03664333]
[1751319231271,2.26745088,659.12,658.6,1.03664333]
[1751319231470,2.26745088,659.12,658.61,1.03664333]
[1751319231674,2.26745088,659.12,658.62,1.03664333]
[1751319231971,2.26745088,659.1,658.63,1.03664333]
[1751319232176,2.26745088,659.1,658.52,1.869]
[1751319232374,2.26745088,659.1,658.53,1.03657543]
[1751319232577,2.26745088,659.1,658.54,1.03657543]
[1751319232778,2.26745088,659.1,658.55,1.03657543]
[1751319232979,2.26745088,659.1,658.56,1.03657543]
[1751319233278,2.26745088,659.1,658.57,1.03657543]
[1751319233481,2.26745088,659.1,658.58,1.03657543]
[1751319233776,2.26745088,659.1,658.59,1.03657543]
[1751319233979,2.26745088,659.1,658.6,1.03657543]
[1751319234178,2.26745088,659.1,658.61,1.03657543]
[1751319234378,2.26745088,659.09,658.52,1.869]
[1751319234580,2.26745088,659.09,658.53,1.03647299]
[1751319234877,2.26745088,659.09,658.54,1.03647299]
[1751319235078,2.26745088,659.09,658.55,1.03647299]
[1751319235279,2.26745088,659.09,658.56,1.03647299]
[1751319235574,2.26745088,659.09,658.57,1.03647299]
[1751319235773,2.26745088,659.09,658.58,1.03647299]
[1751319235976,2.26745088,659.09,658.59,1.03647299]
[1751319236176,2.26745088,659.09,658.6,1.03647299]
[1751319236375,2.26745088,659.08,658.52,1.869]
[1751319236579,2.26745088,659.08,658.53,1.03625945]
[1751319236779,2.26745088,659.08,658.54,1.03625945]
[1751319236978,2.26745088,659.08,658.55,1.03625945]
[1751319237180,2.26745088,659.08,658.56,1.03625945]
[1751319237376,2.26745088,659.08,658.57,1.03625945]
[1751319237676,2.26745088,659.08,658.58,1.03625945]
[1751319237880,2.26745088,659.08,658.59,1.03625945]
[1751319238181,2.26745088,659.08,658.6,1.03625945]
[1751319238375,2.26745088,659.09,658.52,1.869]
[1751319238580,2.26745088,659.09,658.53,1.03620737]
[1751319238779,2.26745088,659.09,658.54,1.03620737]
[1751319238982,2.26745088,659.09,658.55,1.03620737]
[1751319239180,2.26745088,659.09,658.56,1.03620737]
[1751319239379,2.26745088,659.09,658.57,1.03620737]
[1751319239591,2.26745088,659.09,658.58,1.03620737]
[1751319239781,2.26745088,658.97,658.59,1.03620737]
[1751319239985,2.26745088,658.97,658.52,1.869]
[1751319240284,2.26745088,658.97,658.53,1.03618541]
[1751319240481,2.26745088,658.97,658.54,1.03618541]
[1751319240782,2.26745088,658.97,658.55,1.03618541]
[1751319240984,2.26745088,658.97,658.56,1.03618541]
[1751319241184,2.26745088,658.97,658.57,1.03618541]
[1751319241384,2.26745088,658.97,658.58,1.03618541]
[1751319241685,2.26745088,658.97,658.59,1.03618541]
[1751319241885,2.26745088,658.97,658.5,2.133]
[1751319242185,2.26745088,658.97,658.51,1.03616558]
[1751319242384,2.26745088,658.97,658.52,1.03616558]
[1751319242679,2.26745088,658.97,658.53,1.03616558]
[1751319242880,2.26745088,658.97,658.54,1.03616558]
[1751319243086,2.26745088,658.97,658.55,1.03616558]
[1751319243285,2.26745088,658.97,658.56,1.03616558]
[1751319243482,2.26745088,658.97,658.57,1.03616558]
[1751319243784,2.26745088,658.97,658.58,1.03616558]
[1751319243985,2.26745088,658.97,658.59,1.03616558]
[1751319244187,2.26745088,658.97,658.54,1.869]
[1751319244486,2.26745088,658.98,658.55,1.03611605]
[1751319244682,2.26745088,658.98,658.56,1.03611605]
[1751319244881,2.26745088,658.98,658.57,1.03611605]
[1751319245080,2.26745088,658.98,658.54,1.869]
[1751319245081,2.26745088,658.98,658.58,1.03611605]
[1751319245283,2.26745088,658.98,658.59,1.03611605]
[1751319245580,2.26745088,658.98,658.6,1.03611605]
[1751319245782,2.26745088,658.98,658.61,1.03611605]
[1751319246086,2.26745088,658.98,658.54,1.869]
[1751319246280,2.26745088,658.98,658.55,1.03609256]
[1751319246583,2.26745088,658.98,658.56,1.03609256]
[1751319246780,2.26745088,658.98,658.57,1.03609256]
[1751319246983,2.26745088,658.98,658.58,1.03609256]
[1751319247186,2.26745088,659.0,658.59,1.03609256]
[1751319247481,2.26745088,659.0,658.6,1.03609256]
[1751319247785,2.26745088,659.0,658.61,1.03609256]
[1751319247991,2.26745088,659.0,658.54,1.869]
[1751319248188,2.26745088,658.99,658.55,1.03607842]
[1751319248492,2.26745088,658.99,658.56,1.03607842]
[1751319248691,2.26745088,658.99,658.57,1.03607842]
[1751319248988,2.26745088,658.99,658.58,1.03607842]
[1751319249191,2.26745088,658.99,658.59,1.03607842]
[1751319249388,2.26745088,658.99,658.6,1.03607842]
[1751319249599,2.26745088,658.99,658.61,1.03607842]
[1751319249891,2.26745088,658.99,658.62,2.045]
[1751319255101,2.26745088,658.97,658.62,2.045]
[1751319255400,2.26745088,658.99,658.62,2.045]
[1751319257002,2.26745088,658.98,658.62,2.045]
[1751319258205,2.26745088,658.99,658.62,2.045]
[1751319263907,2.26745088,658.96,658.62,2.045]
[1751319264112,2.26745088,658.96,658.54,1.869]
[1751319264311,2.26745088,658.96,658.55,1.03567494]
[1751319264512,2.26745088,659.0,658.56,1.03567494]
[1751319264712,2.26745088,659.0,658.54,1.869]
[1751319264909,2.26745088,659.0,658.55,1.03567458]
[1751319265108,2.26745088,658.98,658.56,1.03567458]
[1751319265308,2.26745088,658.98,658.54,1.869]
[1751319265609,2.26745088,658.98,658.55,1.03573113]
[1751319265812,2.26745088,659.0,658.56,1.03573113]
[1751319266010,2.26745088,659.0,658.54,1.869]
[1751319266209,2.26745088,659.0,658.55,1.03573113]
[1751319266410,2.26745088,659.0,658.56,1.03573113]
[1751319266610,2.26745088,659.0,658.5,2.133]
[1751319266910,2.26745088,659.0,658.51,1.03571716]
[1751319267110,2.26745088,659.0,658.52,1.03571716]
[1751319267312,2.26745088,659.0,658.53,1.03571716]
[1751319267510,2.26745088,659.0,658.54,1.03571716]
[1751319267709,2.26745088,659.0,658.55,1.03571716]
[1751319267911,2.26745088,658.99,658.56,1.03571716]
[1751319268110,2.26745088,658.99,658.53,1.498]
[1751319268311,2.26745088,658.99,658.54,1.03569405]
[1751319268511,2.26745088,658.99,658.55,1.03569405]
[1751319268810,2.26745088,658.99,658.56,1.03569405]
[1751319269111,2.26745088,658.99,658.57,2.073]
[1751319269311,2.26745088,659.0,658.57,2.073]
[1751319270815,2.26745088,658.99,658.57,2.073]
[1751319273414,2.26745088,659.0,658.57,2.073]
[1751319273612,2.26745088,659.0,658.58,1.979]
[1751319274416,2.26745088,658.97,658.58,1.979]
[1751319275017,2.26745088,659.14,658.58,1.979]
[1751319275715,2.26745088,659.15,658.58,1.979]
[1751319283623,2.26745088,659.14,658.58,1.979]
[1751319284324,2.26745088,659.12,658.58,1.979]
[1751319284825,2.26745088,659.01,658.58,1.979]
[1751319285625,2.26745088,658.96,658.58,1.979]
[1751319291022,2.26745088,658.95,658.58,1.979]
[1751319291425,2.26745088,658.95,658.58,3.706]
[1751319291727,0.26416369,659.21,658.58,3.706]
[1751319291728,2.26745088,658.93,658.58,3.706]
[1751319294423,2.26745088,658.96,658.58,3.706]
[1751319296325,2.26745088,658.96,658.59,1.943]
[1751319299431,2.26745088,658.99,658.59,1.943]
[1751319300432,2.26745088,659.0,658.59,1.943]
[1751319304534,2.26745088,658.99,658.59,1.943]
[1751319308933,2.26745088,659.03,658.59,1.943]
[1751319309134,2.26745088,659.02,658.59,1.943]
[1751319310234,2.26745088,659.01,658.58,3.706]
[1751319312432,2.26745088,659.01,658.59,1.03663153]
[1751319312633,2.26745088,659.0,658.58,3.706]
[1751319312834,2.26745088,659.0,658.59,1.03663153]
[1751319313129,2.26745088,659.0,658.59,1.422]
[1751319313334,2.26745088,658.99,658.59,1.422]
[1751319314029,2.26745088,659.04,658.59,1.422]
[1751319316133,2.26745088,659.03,658.59,1.422]
[1751319317132,2.26745088,659.03,658.6,2.133]
[1751319318138,2.26745088,659.03,658.61,1.459]
[1751319318841,2.26745088,659.02,658.61,1.459]
[1751319323842,2.26745088,658.93,658.61,1.459]
[1751319324541,2.26745088,658.91,658.61,1.459]
[1751319330242,2.26745088,658.91,658.6,2.133]
[1751319334348,2.26745088,658.93,658.6,2.133]
[1751319335055,2.26745088,658.93,658.61,1.862]
[1751319343251,2.26745088,658.94,658.61,1.862]
[1751319343953,2.26745088,658.93,658.61,1.862]
[1751319348264,2.26745088,658.94,658.61,1.862]
[1751319350267,2.26745088,658.98,658.61,1.862]
[1751319350462,2.26745088,658.99,658.61,1.862]
[1751319353267,2.26745088,658.98,658.61,1.862]
[1751319355372,2.26745088,658.99,658.61,1.862]
[1751319355873,2.26745088,658.97,658.61,1.862]
[1751319360179,2.26745088,658.93,658.61,1.862]
[1751319364083,2.26745088,658.93,658.57,3.728]
[1751319364284,2.26745088,658.93,658.58,1.03810642]
[1751319364484,2.26745088,658.93,658.59,1.03810642]
[1751319364781,2.26745088,658.99,658.57,3.728]
[1751319364983,2.26745088,658.99,658.58,1.0381065]
[1751319365184,2.26745088,658.99,658.59,1.0381065]
[1751319365483,2.26745088,658.99,658.57,1.654]
[1751319365680,2.26745088,658.99,658.58,1.03810653]
[1751319365883,2.26745088,658.99,658.59,1.03810653]
[1751319366085,2.26745088,658.99,658.57,1.654]
[1751319366280,2.26745088,658.99,658.58,1.03810657]
[1751319366584,2.26745088,658.99,658.59,1.03810657]
[1751319366781,2.26745088,658.99,658.59,1.78]
[1751319367686,2.26745088,658.99,658.6,2.005]
[1751319367982,2.26745088,658.99,658.61,2.072]
[1751319369283,2.26745088,659.01,658.61,2.072]
[1751319374490,2.26745088,658.99,658.61,2.072]
[1751319374689,2.26745088,658.95,658.61,2.072]
[1751319379094,2.26745088,658.91,658.61,2.072]
[1751319380391,2.26745088,658.98,658.61,2.072]
[1751319381992,2.26745088,658.98,658.62,2.146]
[1751319384491,2.26745088,658.99,658.62,2.146]
[1751319385695,2.26745088,659.0,658.62,2.146]
[1751319390296,2.26745088,658.94,658.62,2.146]
[1751319392902,0.26419778,659.12,658.62,2.146]
[1751319395198,0.26419778,659.12,658.63,1.882]
[1751319399106,0.26419778,659.12,658.64,1.866]
[1751319402804,2.26745088,659.02,658.64,1.866]
[1751319404307,2.26745088,659.11,658.64,1.866]
[1751319404607,2.26745088,659.1,658.64,1.866]
[1751319404808,2.26745088,659.09,658.64,1.866]
[1751319405305,2.26745088,659.1,658.64,1.866]
[1751319405908,2.26745088,659.1,658.65,2.018]
[1751319406911,2.26745088,659.09,658.65,2.018]
[1751319410117,0.26419778,659.12,658.65,2.018]
[1751319412119,0.26419778,659.12,658.66,1.596]
[1751319415217,2.26745088,659.11,658.66,1.596]
[1751319417523,0.26419778,659.12,658.66,1.596]
[1751319417524,2.53164866,659.12,658.66,1.596]
[1751319419123,2.53164866,659.12,658.67,2.12]
[1751319419920,2.26745088,659.03,658.67,2.12]
[1751319421920,2.26745088,659.03,658.67,3.523]
[1751319422224,2.26745088,659.06,658.67,3.523]
[1751319422422,2.26745088,659.07,658.67,3.523]
[1751319423821,2.26745088,659.04,658.67,3.523]
[1751319424528,2.26745088,659.02,658.67,3.523]
[1751319425129,2.26745088,659.0,658.67,3.523]
[1751319427228,2.26745088,659.03,658.67,3.523]
[1751319427425,2.26745088,659.02,658.67,3.523]
[1751319428226,2.26745088,659.03,658.67,3.523]
[1751319428729,2.26745088,659.02,658.67,3.523]
[1751319429427,2.26745088,659.03,658.67,3.523]
[1751319433132,2.26745088,659.03,658.67,1.403]
[1751319434530,2.26745088,659.06,658.67,1.403]
[1751319435530,2.26745088,659.06,658.68,1.47]
[1751319436234,2.26745088,659.07,658.68,1.47]
[1751319443237,2.26745088,659.17,658.68,1.47]
[1751319443740,2.26745088,659.12,658.68,1.47]
[1751319444040,2.26745088,659.13,658.68,1.47]
[1751319444442,2.26745088,659.27,658.69,1.03598503]
[1751319444738,2.26745088,659.27,658.7,1.03598503]
[1751319444942,2.26745088,659.27,658.71,1.03598503]
[1751319445138,2.26745088,659.3,658.72,1.03598503]
[1751319445438,0.26413462,659.32,658.73,1.03598503]
[1751319445738,0.26413462,659.32,658.74,1.03598503]
[1751319445942,0.26413462,659.32,658.75,1.03598503]
[1751319446142,0.26413462,659.32,658.76,1.03598503]
[1751319446441,0.26413462,659.32,658.77,1.03598503]
[1751319446745,0.26413462,659.32,658.78,1.03598503]
[1751319446943,0.26413462,659.32,658.79,1.03598503]
[1751319447143,0.26413462,659.32,658.68,1.47]
[1751319447344,0.26413462,659.32,658.69,1.03663433]
[1751319447545,0.26413462,659.32,658.7,1.03663433]
[1751319447743,0.26413462,659.32,658.71,1.03663433]
[1751319447941,0.26413462,659.32,658.72,1.03663433]
[1751319448141,0.26413462,659.32,658.73,1.03663433]
[1751319448445,2.26745088,659.23,658.68,1.47]
[1751319450345,2.26745088,659.23,658.69,1.84]
[1751319450844,2.26745088,659.28,658.69,1.84]
[1751319451045,2.26745088,659.28,658.7,2.294]
[1751319453850,2.26745088,659.28,658.71,1.805]
[1751319455250,2.26745088,659.26,658.71,1.805]
[1751319455750,2.26745088,659.29,658.71,1.805]
[1751319455949,2.26745088,659.3,658.71,1.805]
[1751319456149,2.26745088,659.29,658.71,1.805]
[1751319459656,2.26745088,659.3,658.71,1.805]
[1751319460957,2.26745088,659.26,658.71,1.805]
[1751319461158,2.26745088,659.27,658.71,1.805]
[1751319464458,2.26745088,659.26,658.71,1.805]
[1751319465657,2.26745088,659.21,658.71,1.805]
[1751319466358,2.26745088,659.22,658.71,1.805]
[1751319466655,2.26745088,659.22,658.72,1.03628328]
[1751319466854,0.26413462,659.32,658.73,1.03628328]
[1751319467155,0.26413462,659.32,658.74,1.03628328]
[1751319467358,0.26413462,659.32,658.75,1.03628328]
[1751319467558,0.26413462,659.32,658.76,1.03628328]
[1751319467858,0.26413462,659.32,658.71,1.805]
[1751319468058,0.26413462,659.32,658.72,1.03614615]
[1751319468355,0.26413462,659.32,658.73,1.03614615]
[1751319468560,0.26413462,659.32,658.74,1.03614615]
[1751319468755,0.26413462,659.32,658.75,1.03614615]
[1751319469057,0.26413462,659.32,658.71,1.805]
[1751319469260,0.26413462,659.32,658.72,1.03602819]
[1751319469563,0.26413462,659.32,658.73,1.03602819]
[1751319469859,0.26413462,659.32,658.74,1.03602819]
[1751319470059,0.26413462,659.32,658.75,1.03602819]
[1751319470260,0.26413462,659.32,658.71,1.805]
[1751319470559,0.26413462,659.32,658.72,1.03583737]
[1751319470760,0.26413462,659.32,658.73,1.03583737]
[1751319470961,0.26413462,659.32,658.74,1.03583737]
[1751319471158,0.26413462,659.32,658.75,1.03583737]
[1751319471360,0.26413462,659.32,658.71,1.805]
[1751319471557,0.26413462,659.32,658.72,1.03576181]
[1751319471765,0.26413462,659.32,658.73,1.03576181]
[1751319471966,0.26413462,659.32,658.74,1.03576181]
[1751319472166,0.26413462,659.32,658.71,1.805]
[1751319472368,0.26413462,659.32,658.72,1.03570008]
[1751319472564,0.26413462,659.32,658.73,1.03570008]
[1751319472764,0.26413462,659.32,658.74,1.03570008]
[1751319473065,0.26413462,659.32,658.71,1.805]
[1751319473269,0.26413462,659.32,658.72,1.03570008]
[1751319473469,0.26413462,659.32,658.73,1.03570008]
[1751319473770,0.26413462,659.32,658.71,1.805]
[1751319473969,0.26413462,659.32,658.72,1.03565273]
[1751319474266,0.26413462,659.32,658.73,2.56265273]
[1751319474470,0.26413462,659.32,658.74,1.03561778]
[1751319474670,0.26413462,659.32,658.75,1.03561778]
[1751319474866,0.26413462,659.32,658.76,1.03561778]
[1751319475070,0.26413462,659.32,658.73,1.527]
[1751319475267,0.26413462,659.32,658.74,1.03561778]
[1751319475467,0.26413462,659.32,658.75,1.03561778]
[1751319475667,0.26413462,659.32,658.76,1.03561778]
[1751319475866,0.26413462,659.32,658.73,1.527]
[1751319476068,0.26413462,659.32,658.74,1.03604782]
[1751319476265,0.26413462,659.32,658.75,1.03604782]
[1751319476470,0.26413462,659.32,658.76,1.03604782]
[1751319476668,0.26413462,659.32,658.73,1.527]
[1751319476871,0.26413462,659.32,658.74,1.03603555]
[1751319477070,0.26413462,659.32,658.75,1.03603555]
[1751319477267,0.26413462,659.32,658.76,1.03603555]
[1751319477467,0.26413462,659.32,658.73,1.527]
[1751319477767,0.26413462,659.32,658.74,1.03603444]
[1751319477972,0.26413462,659.32,658.75,1.03603444]
[1751319478175,0.26413462,659.32,658.73,1.527]
[1751319478374,0.26413462,659.32,658.74,1.03608645]
[1751319478573,0.26413462,659.32,658.75,1.03608645]
[1751319478773,0.26413462,659.32,658.76,1.03608645]
[1751319478972,0.26413462,659.32,658.73,1.527]
[1751319479170,0.26413462,659.32,658.74,1.03604417]
[1751319479369,0.26413462,659.32,658.73,1.527]
[1751319479370,0.26413462,659.32,658.75,1.03604417]
[1751319479570,0.26413462,659.32,658.76,1.03604417]
[1751319479877,0.26413462,659.32,658.73,1.527]
[1751319480175,0.26413462,659.32,658.74,1.03606546]
[1751319480375,0.26413462,659.32,658.75,1.03606546]
[1751319480576,0.26413462,659.32,658.76,1.03606546]
[1751319480773,0.26413462,659.32,658.73,1.527]
[1751319480978,0.26413462,659.32,658.74,1.03606546]
[1751319481274,0.26413462,659.32,658.75,1.03606546]
[1751319481474,0.26413462,659.32,658.76,1.03606546]
[1751319481776,0.26413462,659.32,658.73,1.527]
[1751319481977,0.26413462,659.32,658.74,1.03609816]
[1751319482176,0.26413462,659.32,658.75,1.03609816]
[1751319482379,0.26413462,659.32,658.76,1.03609816]
[1751319482579,0.26413462,659.32,658.73,1.527]
[1751319482776,0.26413462,659.32,658.74,1.03608687]
[1751319482975,0.26413462,659.32,658.75,1.03608687]
[1751319483175,0.26413462,659.32,658.76,1.03608687]
[1751319483376,0.26413462,659.32,658.73,1.527]
[1751319486383,0.26413462,659.32,658.69,1.84]
[1751319487280,0.26413462,659.32,658.7,2.219]
[1751319488681,0.26413462,659.32,658.71,2.036]
[1751319489782,0.26413462,659.32,658.72,2.039]
[1751319492188,2.5315855,659.32,658.72,2.039]
[1751319492387,2.26745088,659.31,658.72,2.039]
[1751319493488,2.26745088,659.22,658.72,2.039]
[1751319493992,2.26745088,659.21,658.72,2.039]
[1751319494293,2.26745088,659.22,658.72,2.039]
[1751319494589,2.26745088,659.21,658.72,2.039]
[1751319495089,2.26745088,659.2,658.72,2.039]
[1751319497790,2.26745088,659.19,658.72,2.039]
[1751319499094,2.26745088,659.18,658.72,2.039]
[1751319502394,2.26745088,659.17,658.72,2.039]
[1751319503093,2.26745088,659.18,658.72,2.039]
[1751319503595,2.26745088,659.17,658.72,2.039]
[1751319504695,2.26745088,659.16,658.72,2.039]
[1751319509402,2.26745088,659.16,658.73,1.941]
[1751319514507,2.26745088,659.17,658.73,1.941]
[1751319518104,2.26745088,659.21,658.73,1.941]
[1751319518803,2.26745088,659.22,658.73,1.941]